Cogmind - Beta 10.2 @@@ ROGUE MODE // 2021.12.21 @ 15:12:23 Player: Triffids Result: Destroyed by S-10 Pest with Light Assault Rifle Performance ------------- Evolutions (0) 0 Regions Visited (1) 200 Robots Destroyed (8) 40 Value Destroyed (189) 189 Prototype IDs (0) 0 Alien Tech Used (0) 0 Bonus (0) 0 TOTAL SCORE: 429 Bonus ------- None Cogmind --------- Core Integrity 0/250 Matter 300/300 Energy 125/125 System Corruption 1% Temperature Cool (0) Movement Flying (40) Location -10/Materials Parts ------- > --- POWER (1) -------- Light Ion Engine > --- PROPULSION (2) --- Flight Unit > --- UTILITY (2) ------ (None) > --- WEAPON (2) ------- (None) > --- INVENTORY (4) ---- Ion Engine Aluminum Leg Flight Unit Large Battery (44) Peak State ------------ > --- POWER ------------ Light Ion Engine > --- PROPULSION ------- Aluminum Leg Aluminum Leg > --- UTILITY ---------- Heat Sink Small Storage Unit > --- WEAPON ----------- Medium Laser Light Assault Rifle > --- INVENTORY -------- Ion Engine Aluminum Leg Aluminum Leg Aluminum Leg Small Laser Datajack [Rating: 7] Favorites ----------- Power Light Ion Engine Engine Light Ion Engine Propulsion Aluminum Leg Leg Aluminum Leg Flight Unit Flight Unit Utility Small Storage Unit Device Heat Sink Storage Small Storage Unit Weapon Light Assault Rifle Energy Gun Small Laser Ballistic Gun Light Assault Rifle Build | -11 -10 ------- Run | Scr Mat Slots Evolved . | . . Power . | . . Propulsion . | . . Utility . | . . Weapon . | . . Parts Attached 16 | 6 10 Power 3 | 1 2 Engine 3 | 1 2 Core . | . . Reactor . | . . Propulsion 6 | 2 4 Treads . | . . Leg 4 | 2 2 Wheel . | . . Hover . | . . Flight 2 | . 2 Utility 2 | 1 1 Device 1 | . 1 Storage 1 | 1 . Processor . | . . Hackware . | . . Protection . | . . Artifact . | . . Weapon 5 | 2 3 Energy Gun 4 | 2 2 Energy Cannon . | . . Ballistic Gun 1 | . 1 Ballistic Cannon . | . . Launcher . | . . Special Weapon . | . . Impact Weapon . | . . Slashing Weapon . | . . Piercing Weapon . | . . Special Melee Weapon . | . . Unidentified Prototypes . | . . Parts Lost 8 | . 8 Power 1 | . 1 Propulsion 2 | . 2 Utility 1 | . 1 Weapon 4 | . 4 Highest Loss Streak 5 | . 5 Average Slot Usage (%) 76 | . 76 Engine 12 | . 12 Leg 23 | . 23 Flight 3 | . 3 Device 5 | . 5 Storage 11 | . 11 Energy Gun 11 | . 11 Ballistic Gun 7 | . 7 Naked Turns 16 | . 16 Heaviest Build 11 | 11 11 Greatest Support 20 | 20 20 Greatest Overweight (x) . | . . Average Overweight (x) . | . . Largest Inventory Capacity 6 | 6 6 Average Capacity 5 | 5 5 Most Carried 6 | 4 6 Average Carried 3 | 3 3 Final Capacity 6 | 6 4 Final Carried 4 | 2 4 Class Distribution -------------------- 63% | Mutant 36% | Scavenger-Mutant Dominant Class ---------------- Mutant | -10/Materials Resources | -11 -10 ----------- Run | Scr Mat Matter Collected 373 | 172 201 Remotely . | . . Salvage Created 243 | . 243 Parts 16 | . 16 Haulers Intercepted . | . . Recyclers Shooed . | . . Parts Field Recycled . | . . Retrieved Matter . | . . Parts Self-Destructed . | . . Prevented . | . . Kills | -11 -10 ------- Run | Scr Mat Combat Hostiles Destroyed 8 | . 8 Melee 1 | . 1 Guns 7 | . 7 Classes Destroyed 2 | . 2 Swarmer 4 | . 4 Grunt 4 | . 4 Best Kill Streak 4 | . 4 Combat Bots Only 4 | . 4 Max Kills in Single Turn 1 | . 1 Gunslinging . | . . Exploded . | . . Melee 1 | . 1 Uniques/NPCs Destroyed . | . . Combat | -11 -10 -------- Run | Scr Mat Damage Taken 935 | . 935 Core 253 | . 253 Absorbed by Shields . | . . Core Remaining (%) 100 | 100 . Volleys Fired 32 | . 32 Largest 2 | . 2 Hottest 90 | . 90 Shots Fired 54 | . 54 Gun 54 | . 54 Cannon . | . . Launcher . | . . Special . | . . Kinetic 25 | . 25 Thermal 17 | . 17 Explosive . | . . Electromagnetic 12 | . 12 Robot Hit Streak 9 | . 9 Robot Miss Streak 3 | . 3 Penetration Max . | . . Secondary Targets . | . . Shots Hit Robots 32 | . 32 Core Hits 18 | . 18 Critical Hits . | . . Critical Kills . | . . Critical Parts Destroyed . | . . Melee Attacks . | . . Impact . | . . Slashing . | . . Piercing . | . . Sneak Attacks . | . . Combat Hostiles . | . . Follow-up Attacks . | . . Damage Inflicted 346 | . 346 Guns 330 | . 330 Cannons . | . . Explosions . | . . Melee . | . . Ramming 16 | . 16 Kinetic 133 | . 133 Thermal 100 | . 100 Explosive . | . . Electromagnetic 97 | . 97 Impact . | . . Slashing . | . . Piercing . | . . Highest Corruption 1 | . 1 Average Corruption 1 | . 1 Corruption Purged . | . . Overload Shots . | . . Overflow Damage . | . . Projectiles . | . . Explosions . | . . Melee . | . . Knockbacks . | . . Impact . | . . Kinetic . | . . Secondary . | . . Self-Inflicted Damage 2 | . 2 Shots . | . . Rammed 8 | . 8 Targets Rammed 15 | . 15 Kicked 7 | . 7 Crushed . | . . Highest Temperature 272 | . 272 Average Temperature 143 | . 143 Received Heat Transfer 240 | . 240 Siege Activations . | . . Robots Corrupted . | . . Combat Hostiles . | . . Parts Fried . | . . Impact Corruptions . | . . Robots Melted . | . . Combat Hostiles . | . . Parts Melted . | . . Heat Transferred 237 | . 237 Parts Sabotaged . | . . Parts Stolen . | . . Parts Stripped . | . . Power Chain Reactions . | . . Missiles Intercepted . | . . Alert | -11 -10 ------- Run | Scr Mat Peak Influence 180 | . 180 Initial . | . . Average 109 | . 122 Maximum Alert Level . | . . Low Security (%) 100 | 100 100 Level 1 . | . . Level 2 . | . . Level 3 . | . . Level 4 . | . . Level 5 . | . . High Security . | . . Max Security . | . . Squads Dispatched 2 | . 2 Investigation . | . . Extermination . | . . Reinforcement 2 | . 2 Assault . | . . Garrison . | . . Intercept . | . . Construction Impeded . | . . Haulers Reinforced . | . . Stealth | -11 -10 --------- Run | Scr Mat Distress Signals 1 | . 1 Communications Jammed . | . . Distress Signals . | . . Times Spotted 16 | . 16 Peak Tracking Total 5 | . 5 Tactical Retreats . | . . Traps | -11 -10 ------- Run | Scr Mat Traps Triggered . | . . Indirectly . | . . Trap Hack Attempts . | . . Triggered . | . . Disarmed . | . . Reprogrammed . | . . Reused . | . . Traps Extracted . | . . Installed . | . . Triggered . | . . Machines | -11 -10 ---------- Run | Scr Mat Machines Disabled . | . . Max in Single Turn . | . . Machines Sabotaged . | . . Garrisons Compromised . | . . Overloaded Fab Kills . | . . Fab Network Shutdowns . | . . Hacking | -11 -10 --------- Run | Scr Mat Machines Accessed 1 | . 1 Terminals 1 | . 1 Fabricators . | . . Repair Stations . | . . Recycling Units . | . . Scanalyzers . | . . Garrison Access . | . . Total Hacks 3 | . 3 Successful . | . . Failed 3 | . 3 Catastrophic . | . . Database Lockouts . | . . Manual . | . . Terminals 3 | . 3 Fabricators . | . . Repair Stations . | . . Recycling Units . | . . Scanalyzers . | . . Garrison Access . | . . Terminal Hacks . | . . Fabricator Hacks . | . . Repair Station Hacks . | . . Recycling Unit Hacks . | . . Scanalyzer . | . . Garrison Access Hacks . | . . Unauthorized Hacks . | . . Terminals . | . . Fabricators . | . . Repair Stations . | . . Recycling Units . | . . Scanalyzers . | . . Garrison Access . | . . Data Cores Recovered . | . . Used . | . . Hacking Detections 1 | . 1 Full Trace Events 1 | . 1 Feedback Events . | . . Feedback Blocked . | . . Robot Schematics Acquired . | . . Robots Built . | . . Matter . | . . Time . | . . Total Robot Build Rating . | . . Part Schematics Acquired . | . . Parts Built . | . . Matter . | . . Time . | . . Total Part Build Rating . | . . Parts Repaired . | . . Time . | . . Parts Recycled . | . . Recycled Matter . | . . Retrieved Matter . | . . Retrieved Components . | . . Parts Scanalyzed . | . . Part Schematics Acquired . | . . Parts Damaged . | . . Bothacking | -11 -10 ------------ Run | Scr Mat Used RIF Installer . | . . Robots Hacked . | . . Non-combat . | . . Combat . | . . Robot Hacks Applied . | . . Relay Couplers Released . | . . Robots Rewired . | . . Allies Hacked . | . . Hacks Repelled . | . . Allies | -11 -10 -------- Run | Scr Mat Total Allies . | . . Largest Group . | . . Highest-Rated Group . | . . Highest-Rated Ally . | . . Total Orders . | . . Ally Attacks . | . . Total Damage . | . . Kills . | . . Allies Corrupted . | . . Allies Melted . | . . Intel | -11 -10 ------- Run | Scr Mat Robot Analysis Total . | . . Derelict Logs Recovered . | . . Drone Launches . | . . Drone Recoveries . | . . Exploration | -11 -10 ------------- Run | Scr Mat Turns Passed 406 | 43 363 Spaces Moved 327 | 35 292 Core 48 | 15 33 Treads . | . . Legs 168 | 20 148 Wheels . | . . Hover . | . . Flight 111 | . 111 Fastest Speed 37 | 50 37 Average Speed 81 | 90 80 Slowest Speed 120 | 120 120 Overloaded Moves . | . . Propulsion Burnouts . | . . Robots Hopped 6 | . 6 Cave-ins Triggered . | . . Exploration Rate (%) 14 | 3 26 Regions Visited 1 Branch Regions . Pre-discovered Areas . | . . Known Exits Taken . | . . Unknown Exits Taken 1 | 1 . Scrap Searched . | . . Spaces Dug . | . . Terrain Destroyed . | . . Melee . | . . Projectile . | . . AOE . | . . Terrain Rammed . | . . Walls Destroyed . | . . Machines Disabled . | . . Actions | -11 -10 --------- Run | Scr Mat Total 404 | 45 359 Wait 4 | . 4 Move 315 | 34 281 Hop 5 | . 5 Pick Up 12 | 5 7 Fast Attach 6 | 3 3 Attach 6 | 3 3 Detach . | . . Swap 4 | . 4 Drop 5 | . 5 Fire 32 | . 32 Melee . | . . Ram . | . . Kick 15 | . 15 Crush . | . . Escape Stasis . | . . Rewire . | . . Trap . | . . Miscellaneous . | . . Route ------- -11/Scrapyard -10/Materials History --------- Turn | Location | Event 9 | -11/Scrapyard | Discovered new exit (range 15) 44 | -11/Scrapyard | Entered Materials 327 | -10/Materials | Core integrity fell below 50% 342 | -10/Materials | Released all parts (2) 352 | -10/Materials | Core integrity fell below 20% 371 | -10/Materials | Lost 5 parts (1p1n1u2w) 407 | -10/Materials | Destroyed by S-10 Pest with Light Assault Rifle Last Messages --------------- 00368_ K-01 Serf cleans the Processing Tank. 00369_ Acquired 10 matter. 00372_ Acquired Flight Unit. 00373_ K-01 Serf collects debris. 00375_ Acquired 5 matter. 00376_ Acquired 4 matter. 00376_ R-06 Scavenger collects Lgt. Nuclear Core. 00376_ Acquired 6 matter. 00378_ Acquired Flight Unit. 00381_ R-06 Scavenger collects Sml. Storage Unit. 00384_ K-01 Serf cleans the Processing Tank. 00389_ K-01 Serf cleans the Terminal. 00389_ K-01 Serf collects debris. 00392_ K-01 Serf cleans the Terminal. 00396_ Dropped Datajack. 00396_ Acquired Lrg. Battery. 00399_ Connecting with Terminal... 00399_ Current location identified: Materials 00403_ R-06 Scavenger inserts Lgt. Ion Engine into recycling unit. 00404_ Flight Unit destroyed. Map ----- +----------------------------------------------------+ | ??????# """"" #???????????????????????????? | | ??????# """"" #???????????????????????????? | | ??????# #???????????????????????????? | | ??????# "" #???????????????????????????? | | ??????# "T #???????????????????????????? | | ??????# "" #?????###########???????????? | | ??????# ####### / #???????????? | | ?????#####+#####! # ! #???????????? | | ?????# # """ #???????????? | | ?????# / """ #???????????? | | ######/## # """ #???????????? | | # ######## # " " #???????????? | | # #?#"""### ## "T" ! #???????????? | | # ###"Y"### ## """ #???????????? | | # ! # ############???????????? | | # # o #??????????????????????? | | # + """"" k#??????????????????????? | | # """ # """"" s###????????????????????? | | # """"" # """"" s""#????????????????????? | | # """"" ## ""#????????????????????? | | # """"" ## g T"#????????????????????? | | # """ ## """"" ""#????????????????????? | | ########## """"" g ""#????????????????????? | | ?######### """"" ###????????????????????? | | ?# !%%%# #??????????????????????? | | ?# = %#% @#??????????????????????? | | ?# % # %""""" * ########???????????????? | | ?# %%%%+% """"" k ????????? | | ?# % %# """"" ########???????????????? | | ########## #??????????????????????? | | # # #??????????????????????? | | #""""" # """"" #??????????????????????? | | #""""" # """"" #??????????????????????? | | #""""" # """"" #??????????????????????? | | #""""" + #??????????????????????? | | #""""" # #??????????????????????? | | #""""" # ########??????????????????????? | | #""""" # #?????????????????????????????? | | # # #?????????????????????????????? | | ########## #?????????????????????????????? | | ?????????#####?????????????????????????????? | | ???????????????????????????????????????????? | | ???????????????????????????????????????????? | | ???????????????????????????????????????????? | | ???????????????????????????????????????????? | | ???????????????????????????????????????????? | | ???????????????????????????????????????????? | | ???????????????????????????????????????????? | | ???????????????????????????????????????????? | | ???????????????????????????????????????????? | +----------------------------------------------------+ Best States ------------- Heat Dissipation 35 Energy Generation 10 Energy Capacity 125 Matter Stores 300 Matter Capacity 300 Sight Range 16 Terrain Scan Density 10 Evasion (%) 62 Item Schematics ----------------- None Robot Schematics ------------------ None Fabricated ------------ Nothing Alien Tech Used ----------------- None Achievements -------------- None Challenges ------------ None Game ------ Seed StealthAnalysisStick Manual? 0 Play Time 00:07:42 Cumulative 71.8 hours Start 2021.12.21 @ 15:04:02 End 2021.12.21 @ 15:12:23 Sessions 1 Manual Loads 0 Difficulty Rogue Special Mode None Game No. 86 Rogue 86 Adventurer 0 Explorer 0 Win Type - Total 0 Types 0/0/0/0/0/0/0/0/0 Lore% 36 Gallery% 35 Achievement% 24 Wizard Run 0 Options --------- ASCII 0 Keyboard 1 Movement Vi Keybinds 0 Fullscreen 0 Font 20/SmallcapsGlow Map View 76x50 Tactical HUD 1 Map Filters NONE Filters NONE Steam 1 RUN: a31daad5-a187-4160-925e-47f670a75635